fUST/lending_fUST_20250526
["ID","MTS","AMOUNT","RATE_DAILY","PERIOD"]
[362416125,1748268338528,-500.0,0.00018594,2]
[362416126,1748268338551,-500.0,0.00018594,2]
[362416127,1748268338573,-500.0,0.00018594,2]
[362416128,1748268338595,-500.0,0.00018594,2]
[362416129,1748268338616,-500.0,0.00018594,2]
[362416130,1748268338639,-500.0,0.00018594,2]
[362416131,1748268338661,-500.0,0.00018594,2]
[362416132,1748268338684,-500.0,0.00018594,2]
[362416133,1748268338707,-618.83992419,0.00018594,2]
[362416134,1748268338731,-500.0,0.00018594,2]
[362416135,1748268338754,-500.0,0.00018594,2]
[362416136,1748268338777,-500.0,0.00018594,2]
[362416137,1748268338799,-500.0,0.00018594,2]
[362416138,1748268338822,-500.0,0.00018594,2]
[362416139,1748268338844,-500.0,0.00018594,2]
[362416140,1748268338866,-500.0,0.00018594,2]
[362416141,1748268338888,-300.0,0.00018595,2]
[362416142,1748268338908,-1941.22157454,0.00018595,2]
[362416143,1748268338928,-500.0,0.00018599,2]
[362416144,1748268338950,-500.0,0.00018599,2]
[362416145,1748268338972,-500.0,0.00018599,2]
[362416146,1748268338995,-275.49370289,0.00018599,2]
[362416147,1748268339021,-400.75521901,0.00018599,2]
[362416148,1748268339044,-500.0,0.00018599,2]
[362416149,1748268339067,-500.0,0.00018599,2]
[362416150,1748268339089,-22304.0,0.000186,2]
[362416151,1748268339110,-327.12378332,0.00018873,2]
[362416152,1748268339131,-510.74419663,0.000189,2]
[362416153,1748268339152,-2417.86886763,0.00018908,2]
[362416154,1748268339172,-152.0,0.00019017,2]
[362416155,1748268339208,-33187.43815088,0.00019178,2]
[362416156,1748268339236,-500.0,0.00019178,2]
[362416157,1748268339259,-500.0,0.00019178,2]
[362416158,1748268339285,-500.0,0.00019178,2]
[362416159,1748268339308,-500.0,0.00019178,2]
[362416160,1748268339332,-259.24343956,0.00019178,2]
[362416161,1748268339353,-195.9604656,0.00019178,2]
[362416162,1748268339373,-1000.0,0.00019178,2]
[362416163,1748268339395,-612.0329883,0.00019663,2]
[362416164,1748268339417,-430.51841573,0.00019663,2]
[362416165,1748268339438,-156.587,0.00019697,2]
[362416166,1748268339459,-1193.0348419,0.00019709,3]
[362416167,1748268339480,-12654.40314616,0.00019709,2]
[362416168,1748268339500,-314.67999324,0.00019709,2]
[362416169,1748268339522,-2000.0,0.00019726,2]
[362416170,1748268339543,-162.380719,0.00019752,2]
[362416171,1748268339563,-894.64583333,0.00019799,2]
[362416172,1748268339584,-168.3888056,0.00019807,2]
[362416173,1748268339603,-174.61919141,0.00019862,2]
[362416174,1748268339630,-406.54862988,0.000199,2]
[362416175,1748268339653,-181.08010149,0.00019917,2]
[362416176,1748268339673,-187.78006525,0.00019972,2]
[362416177,1748268339694,-1032.08331422,0.0002,2]
[362416178,1748268339714,-157.89,0.0002,2]
[362416179,1748268339735,-200.72594239,0.00020027,2]
[362416180,1748268339764,-406.54862967,0.00020107,2]
[362416181,1748268339788,-1480.51874758,0.00020201,2]
[362416182,1748268339809,-3000.0,0.00020274,2]
[362416183,1748268339832,-420.0,0.00020275,2]
[362416184,1748268339853,-326.0,0.00020275,2]
[362416185,1748268339875,-420.0,0.00020277,2]
[362416186,1748268339903,-406.54862967,0.00020314,3]
[362416187,1748268339925,-1620.0,0.00020374,2]
[362416188,1748268340121,-406.54862967,0.00020521,3]
[362416189,1748268340152,-406.54862967,0.00020728,3]
[362416190,1748268340174,-4000.0,0.00020822,2]
[362416191,1748268340196,-151.0,0.00020822,2]
[362416192,1748268340218,-164.099965,0.00020822,2]
[362416193,1748268340238,-151.0,0.00020822,2]
[362416194,1748268340258,-151.0,0.00020822,2]
[362416195,1748268340284,-151.0,0.00020822,2]
[362416196,1748268340305,-225.038098,0.00020822,2]
[362416197,1748268340326,-151.0,0.00020822,2]
[362416198,1748268340347,-151.0,0.00020822,2]
[362416199,1748268340368,-256.518301,0.00020822,2]
[362416200,1748268340389,-151.0,0.00020822,2]
[362416201,1748268340411,-151.0,0.00020822,2]
[362416202,1748268340433,-151.0,0.00020822,2]
[362416203,1748268340454,-151.0,0.00020822,2]
[362416204,1748268340475,-151.0,0.00020822,2]
[362416205,1748268340496,-151.0,0.00020822,2]
[362416206,1748268340517,-189.87727155,0.00020865,2]
[362416207,1748268340546,-406.54862967,0.00020934,4]
[362416208,1748268340566,-423.08503179,0.00020962,2]
[362416209,1748268340587,-160.0,0.00020963,2]
[362416210,1748268340607,-212.59253735,0.00020963,2]
[362416211,1748268340628,-160.0,0.00020963,2]
[362416212,1748268340649,-229.15402412,0.00020963,2]
[362416213,1748268340669,-160.0,0.00020963,2]
[362416214,1748268340690,-10000.0,0.00021,5]
[362416215,1748268340711,-10000.0,0.00021,5]
[362416216,1748268340732,-10000.0,0.00021,5]
[362416217,1748268340752,-10000.0,0.00021,5]
[362416218,1748268340775,-10000.0,0.00021,5]
[362416219,1748268340795,-10000.0,0.00021,5]
[362416220,1748268340816,-151.0,0.00021,2]
[362416221,1748268340837,-151.0,0.00021,2]
[362416222,1748268340858,-151.0,0.00021,2]
[362416223,1748268340878,-203.756112,0.00021,2]
[362416224,1748268340898,-152.699145,0.00021,2]
[362416225,1748268340920,-151.0,0.00021,2]
[362416226,1748268340940,-151.0,0.00021,2]
[362416227,1748268340962,-151.0,0.00021,2]
[362416228,1748268340984,-151.0,0.00021,2]
[362416229,1748268341008,-151.0,0.00021,2]
[362416230,1748268341029,-151.0,0.00021,2]
[362416231,1748268341050,-151.0,0.00021,2]
[362416232,1748268341071,-151.0,0.00021,2]
[362416233,1748268341093,-151.0,0.00021,2]
[362416234,1748268341114,-151.0,0.00021,2]
[362416235,1748268341134,-151.0,0.00021,2]
[362416236,1748268341155,-151.0,0.00021,2]
[362416237,1748268341176,-151.0,0.00021,2]
[362416238,1748268341199,-151.0,0.00021,2]
[362416239,1748268341220,-151.0,0.00021,2]
[362416240,1748268341241,-166.364334,0.00021,2]
[362416241,1748268341262,-151.0,0.00021,2]
[362416242,1748268341285,-151.0,0.00021,2]
[362416243,1748268341305,-151.0,0.00021,2]
[362416244,1748268341327,-151.0,0.00021,2]
[362416245,1748268341356,-406.54862967,0.00021141,4]
[362416246,1748268341378,-500.0,0.00021164,2]
[362416247,1748268341409,-406.54862967,0.00021348,5]
[362416248,1748268341436,-5000.0,0.0002137,2]
[362416249,1748268341458,-91789.65055478,0.000214,2]
[362416250,1748268351114,-157615.928514,0.000214,2]
[362416251,1748268418133,-1941.22157454,0.00018594,2]
[362416252,1748268418157,-500.0,0.00018594,2]
[362416253,1748268418180,-500.0,0.00018594,2]
[362416254,1748268418202,-377.60920835,0.00018594,2]
[362416255,1748268418225,-500.0,0.00018594,2]
[362416256,1748268418248,-500.0,0.00018594,2]
[362416257,1748268418271,-500.0,0.00018594,2]
[362416258,1748268418296,-500.0,0.00018594,2]
[362416259,1748268418319,-500.0,0.00018594,2]
[362416260,1748268418342,-500.0,0.00018594,2]
[362416261,1748268418369,-500.0,0.00018594,2]
[362416262,1748268418393,-500.0,0.00018594,2]
[362416263,1748268418417,-500.0,0.00018594,2]
[362416264,1748268418442,-500.0,0.00018594,2]
[362416265,1748268418466,-253.01858682,0.00018594,2]
[362416266,1748268418488,-500.0,0.00018594,2]
[362416267,1748268418509,-314.67999324,0.00019709,2]
[362416268,1748268418531,-151.0,0.00020822,2]
[362416269,1748268418553,-151.0,0.00021,2]
[362416270,1748268418574,-151.0,0.00021,2]
[362416271,1748268418597,-5077.21587005,0.000214,2]
[362416272,1748268427160,-81404.748045,0.000214,2]
[362416273,1748268431095,-12654.40314616,0.00019709,2]
[362416274,1748268431117,-141874.34344611,0.000214,2]
[362416275,1748268434099,-127575.417186,0.000214,2]
[362416276,1748268439103,-212.59253735,0.00019709,2]
[362416277,1748268439124,-21473.65971865,0.000214,2]
[362416278,1748268442101,-46541.85088341,0.000214,2]
[362416279,1748268442131,-406.54862967,0.00021555,5]
[362416280,1748268442152,-1000.0,0.000216,2]
[362416281,1748268442182,-406.54862967,0.00021762,5]
[362416282,1748268442204,-300.0,0.00021916,2]
[362416283,1748268442227,-5615.01,0.00021917,2]
[362416284,1748268442251,-756.1637342,0.00021952,2]
[362416285,1748268442274,-207.4,0.00021961,2]
[362416286,1748268442303,-406.54862967,0.00021969,6]
[362416287,1748268442327,-170.0,0.00022,2]
[362416288,1748268442348,-2000.0,0.00022148,2]
[362416289,1748268442376,-406.54862967,0.00022176,6]
[362416290,1748268442398,-158.3064961,0.00022356,2]
[362416291,1748268442421,-176.2486289,0.00022356,2]
[362416292,1748268442442,-709.5661651,0.00022356,2]
[362416293,1748268442470,-406.54862967,0.00022383,7]
[362416294,1748268442492,-151.0,0.00022466,7]
[362416295,1748268442513,-151.0,0.00022466,2]
[362416296,1748268442535,-151.0,0.00022466,7]
[362416297,1748268442556,-151.0,0.00022466,7]
[362416298,1748268442578,-258.317488,0.00022466,7]
[362416299,1748268442600,-151.0,0.00022466,7]
[362416300,1748268442623,-500.0,0.00022589,2]
[362416301,1748268442647,-500.0,0.00022589,2]
[362416302,1748268442669,-380.0,0.00022589,2]
[362416303,1748268442690,-500.0,0.00022589,2]
[362416304,1748268442712,-500.0,0.00022589,2]
[362416305,1748268442738,-500.0,0.00022589,2]
[362416306,1748268442759,-500.0,0.00022589,2]
[362416307,1748268442781,-500.0,0.00022589,2]
[362416308,1748268442802,-500.0,0.00022589,2]
[362416309,1748268442826,-500.0,0.00022589,2]
[362416310,1748268442847,-500.0,0.00022589,2]
[362416311,1748268442870,-500.0,0.00022589,2]
[362416312,1748268442893,-500.0,0.00022589,2]
[362416313,1748268442914,-500.0,0.00022589,2]
[362416314,1748268442935,-500.0,0.00022589,2]
[362416315,1748268442958,-500.0,0.00022589,2]
[362416316,1748268442982,-500.0,0.00022589,2]
[362416317,1748268443004,-178.32839605,0.00022589,2]
[362416318,1748268443027,-500.0,0.00022589,2]
[362416319,1748268443051,-500.0,0.00022589,2]
[362416320,1748268443074,-500.0,0.00022589,2]
[362416321,1748268443099,-500.0,0.00022589,2]
[362416322,1748268443122,-242.29060808,0.00022589,2]
[362416323,1748268443147,-500.0,0.00022589,2]
[362416324,1748268443174,-500.0,0.00022589,2]
[362416325,1748268443198,-500.0,0.00022589,2]
[362416326,1748268443221,-500.0,0.00022589,2]
[362416327,1748268443245,-500.0,0.00022589,2]
[362416328,1748268443270,-500.0,0.00022589,2]
[362416329,1748268443294,-500.0,0.00022589,2]
[362416330,1748268443317,-500.0,0.00022589,2]
[362416331,1748268443340,-500.0,0.00022589,2]
[362416332,1748268443363,-500.0,0.00022589,2]
[362416333,1748268443389,-500.0,0.00022589,2]
[362416334,1748268443413,-618.83992419,0.00022589,2]
[362416335,1748268443437,-500.0,0.00022589,2]
[362416336,1748268443460,-500.0,0.00022589,2]
[362416337,1748268443484,-500.0,0.00022589,2]
[362416338,1748268443510,-500.0,0.00022589,2]
[362416339,1748268443533,-500.0,0.00022589,2]
[362416340,1748268443556,-500.0,0.00022589,2]
[362416341,1748268443580,-500.0,0.00022589,2]
[362416342,1748268443603,-500.0,0.00022589,2]
[362416343,1748268443625,-339.87883788,0.00022589,2]
[362416344,1748268443647,-500.0,0.00022589,2]
[362416345,1748268443675,-406.54862967,0.0002259,7]
[362416346,1748268443696,-3000.0,0.00022696,2]
[362416347,1748268443725,-406.54862967,0.00022797,7]
[362416348,1748268443746,-520.57,0.000228,2]
[362416349,1748268443769,-932.68,0.00022842,2]
[362416350,1748268443790,-327.12378332,0.00022863,2]
[362416351,1748268443823,-257.8100361,0.00022977,2]
[362416352,1748268444021,-153.0,0.00022977,2]
[362416353,1748268444055,-153.0,0.00022977,2]
[362416354,1748268444078,-153.0,0.00022977,2]
[362416355,1748268444109,-406.54862967,0.00023003,8]
[362416356,1748268444138,-406.54862967,0.0002321,8]
[362416357,1748268444161,-4000.0,0.00023244,2]
[362416358,1748268444184,-150.0,0.00023329,2]
[362416359,1748268444209,-215.0738,0.0002333,2]
[362416360,1748268444233,-500.0,0.00023356,2]
[362416361,1748268444254,-583.85807,0.00023373,15]
[362416362,1748268444281,-406.54862967,0.00023417,9]
[362416363,1748268444302,-2788.35022622,0.000235,7]
[362416364,1748268444330,-406.54862967,0.00023624,9]
[362416365,1748268444350,-5000.0,0.00023792,2]
[362416366,1748268444370,-1000.0,0.000238,5]
[362416367,1748268444392,-420.0,0.00023817,2]
[362416368,1748268444418,-406.54862967,0.00023831,10]
[362416369,1748268444440,-622.613945,0.00023843,3]
[362416370,1748268444465,-510.74419663,0.000239,2]
[362416371,1748268444486,-9684.36452,0.00024,5]
[362416372,1748268444508,-151.0,0.00024,7]
[362416373,1748268444529,-151.0,0.00024,2]
[362416374,1748268444550,-281.822306,0.00024,7]
[362416375,1748268444571,-229.15402412,0.00024,10]
[362416376,1748268444592,-12654.40314616,0.00024,10]
[362416377,1748268444614,-151.0,0.00024,7]
[362416378,1748268444637,-151.0,0.00024,7]
[362416379,1748268444658,-170.0,0.00024,7]
[362416380,1748268444685,-406.54862967,0.00024038,10]
[362416381,1748268444708,-18448.19,0.00024083,9]
[362416382,1748268444736,-406.54862967,0.00024245,10]
[362416383,1748268444757,-3977.31764625,0.0002434,2]
[362416384,1748268444777,-5501.5,0.00024356,9]
[362416385,1748268444805,-406.54862967,0.00024452,11]
[362416386,1748268444826,-233269.46427024,0.000245,14]
[362416387,1748268444864,-1194209.626086,0.000245,14]
[362416388,1748268452102,-152.0,0.00023029,2]
[362416389,1748268452125,-485.7812,0.00024033,15]
[362416390,1748268452149,-2152.86936538,0.000245,14]
[362416451,1748268632229,-151.0,0.00020822,2]
[362416453,1748268632240,-151.0,0.00021,2]
[362416455,1748268632251,-151.0,0.00021,2]
[362416457,1748268632261,-356.77192445,0.00021164,2]
[362416470,1748268632374,-143.22807555,0.00021164,2]
[362416472,1748268632384,-160.0,0.00022398,2]
[362416474,1748268632394,-133.8239401,0.00022398,2]
[362416476,1748268632411,-760.82189323,0.00022398,2]
[362416478,1748268632421,-160.0,0.00022398,2]
[362416480,1748268632431,-423.08503179,0.00022398,2]
[362416482,1748268632442,-160.0,0.00022398,2]
[362416484,1748268632452,-300.0,0.00022399,2]
[362416487,1748268632463,-300.0,0.00022399,2]
[362416489,1748268632473,-1200.0,0.00022399,2]
[362416491,1748268632483,-300.0,0.00022399,2]
[362416493,1748268632493,-340.49613109,0.000224,2]
[362416495,1748268632503,-151.0,0.00022466,7]
[362416497,1748268632513,-468.51,0.000228,2]
[362416499,1748268632524,-163.59964844,0.00023356,2]
[362416501,1748268632535,-311.61497091,0.00023698,2]
[362416503,1748268632545,-560.352551,0.00023853,3]
[362416505,1748268632556,-151.0,0.00024,7]
[362416507,1748268632566,-21999.99887501,0.00024,7]
[362416509,1748268632575,-493.9,0.0002415,15]
[362416511,1748268632585,-420.0,0.0002433,2]
[362416513,1748268632595,-141132.46711928,0.000245,14]
[362416839,1748268638317,-500.0,0.00023999,2]
[362416842,1748268638328,-305.89095409,0.00023999,2]
[362416844,1748268638339,-471.36562312,0.00023999,2]
[362416846,1748268638349,-500.0,0.00023999,2]
[362416848,1748268638358,-346.53776936,0.00023999,2]
[362416850,1748268638368,-16026.0663859,0.000245,14]
[362416878,1748268639198,-164652.17360757,0.000245,14]
[362416879,1748268639216,-160493.05075284,0.000245,14]
[362416880,1748268639242,-9044.972005,0.000245,14]
[362416881,1748268639267,-24489.03709831,0.000245,14]
[362416882,1748268639278,-150.0,0.000245,2]
[362416883,1748268639288,-151.0,0.000245,5]
[362416884,1748268639299,-150.079533,0.000245,2]
[362416885,1748268639309,-189.87727154,0.00024557,2]
[362416886,1748268639322,-153.0,0.00024566,2]
[362416887,1748268639332,-153.0,0.00024566,2]
[362416888,1748268639342,-107253.96455115,0.000246,5]
[362416889,1748268639444,-515.0,0.0002415,15]
[362416890,1748268639455,-418.0000021,0.000246,5]
[362416907,1748268640437,-300.0,0.00023998,2]
[362416908,1748268640447,-13875.046354,0.000246,5]
[362416909,1748268640486,-249.993024,0.000246,5]
[362416922,1748268643343,-1229.67748,0.0002415,15]
[362416923,1748268643354,-173899.13198,0.000246,5]
[362416924,1748268643558,-1657.416137,0.000246,5]
[362416941,1748268646289,-2409.583584,0.00023657,2]
[362416942,1748268647544,-3172.4875509,0.00023657,2]
[362416943,1748268647557,-40451.2314021,0.000246,5]
[362416961,1748269242327,160.395973,0.00013699,2]
[362416970,1748269625128,-1047.0,0.00021,2]
[362416971,1748269625151,-194.87855915,0.0002134,2]
[362416972,1748269625173,-8000.0,0.00022,2]
[362416973,1748269625196,-226.99742072,0.000225,2]
[362416974,1748269625219,-257.0,0.00022898,2]
[362416975,1748269625251,-203.2743149,0.000229,8]
[362416976,1748269625274,-300.0,0.00022999,2]
[362416977,1748269625296,-421.66,0.00023,2]
[362416978,1748269625318,-1255.53714057,0.00023,2]
[362416983,1748269724482,-152.0,0.00015,2]
[362416984,1748269738498,-3000.0,0.00015,2]
[362416985,1748269749105,-124.18696416,0.00015,2]
[362416986,1748269749128,-513.34015628,0.000179,2]
[362416987,1748269749151,-300.0,0.00017999,2]
[362416988,1748269749174,-28570.14278084,0.00018,2]
[362417016,1748269832315,-500.0,0.00018,2]
[362417361,1748269838179,-337.90960781,0.00018,2]
[362417362,1748269838380,-1322.92749282,0.00018,2]
[362417363,1748269838392,-999.67,0.00018,2]
[362417926,1748270505224,160.395973,0.00013699,2]
[362417927,1748270851137,-419.18344313,0.00018,2]
[362417952,1748271032464,-334.49580169,0.00018,2]
[362417953,1748271032475,-205.43419226,0.000188,2]
[362417954,1748271032485,-513.9790184,0.000189,2]
[362417956,1748271032494,-1913.503696,0.00019151,2]
[362417958,1748271032504,-1193.0348419,0.00019714,3]
[362417959,1748271032514,-300.0,0.00019714,2]
[362417960,1748271032523,-300.0,0.00019714,2]
[362417961,1748271032533,-300.0,0.00019714,2]
[362417962,1748271032543,-1200.0,0.00019714,2]
[362417963,1748271032554,-11190.3882421,0.00019715,2]
[362417964,1748271032563,-737.0123279,0.00019789,2]
[362417965,1748271032573,-212.59253735,0.00019918,2]
[362417966,1748271032583,-35046.23650684,0.00020337,2]
[362417967,1748271032593,-161.832419,0.00020337,2]
[362417968,1748271032603,-182.83710972,0.0002037,2]
[362417969,1748271032612,-630.6304833,0.00020631,2]
[362417970,1748271032622,-150.9620454,0.00020637,2]
[362417971,1748271032632,-22666.32468447,0.00020736,2]
[362417972,1748271032687,-46.57593813,0.00020736,2]
[362417982,1748271038461,-300.0,0.00020735,2]
[362417984,1748271038471,-500.0,0.00020735,2]
[362417986,1748271038481,-500.0,0.00020735,2]
[362417988,1748271038491,-500.0,0.00020735,2]
[362417990,1748271038501,-500.0,0.00020735,2]
[362417992,1748271038511,-10904.53752828,0.00020736,2]
[362417994,1748271038521,-500.0,0.00020737,2]
[362417996,1748271038530,-496.29959017,0.00020737,2]
[362417998,1748271038540,-500.0,0.00020737,2]
[362418000,1748271038550,-500.0,0.00020737,2]
[362418001,1748271038559,-158.66317539,0.00020737,2]
[362418002,1748271038570,-500.0,0.00020737,2]
[362418003,1748271038579,-500.0,0.00020737,2]
[362418004,1748271038589,-500.0,0.00020737,2]
[362418005,1748271038599,-500.0,0.00020737,2]
[362418006,1748271038608,-453.96169492,0.00020737,2]
[362418007,1748271038618,-500.0,0.00020737,2]
[362418008,1748271038628,-500.0,0.00020737,2]
[362418009,1748271038638,-500.0,0.00020737,2]
[362418010,1748271038648,-500.0,0.00020737,2]
[362418011,1748271038658,-500.0,0.00020737,2]
[362418012,1748271038668,-500.0,0.00020737,2]
[362418013,1748271038677,-500.0,0.00020737,2]
[362418014,1748271038686,-500.0,0.00020737,2]
[362418015,1748271038696,-250.0,0.00020737,2]
[362418016,1748271038709,-500.0,0.00020737,2]
[362418017,1748271038718,-500.0,0.00020737,2]
[362418018,1748271038729,-500.0,0.00020737,2]
[362418020,1748271038739,-500.0,0.00020737,2]
[362418022,1748271038749,-500.0,0.00020737,2]
[362418024,1748271038758,-500.0,0.00020737,2]
[362418026,1748271038768,-500.0,0.00020737,2]
[362418028,1748271038777,-500.0,0.00020737,2]
[362418030,1748271038787,-500.0,0.00020737,2]
[362418032,1748271038796,-500.0,0.00020737,2]
[362418034,1748271038807,-500.0,0.00020737,2]
[362418036,1748271038816,-500.0,0.00020737,2]
[362418038,1748271038826,-500.0,0.00020737,2]
[362418040,1748271038836,-602.45225583,0.00020737,2]
[362418042,1748271038845,-500.0,0.00020737,2]
[362418044,1748271038855,-500.0,0.00020737,2]
[362418046,1748271038864,-500.0,0.00020737,2]
[362418048,1748271038873,-500.0,0.00020737,2]
[362418050,1748271038883,-500.0,0.00020737,2]
[362418051,1748271038893,-500.0,0.00020737,2]
[362418052,1748271038903,-500.0,0.00020737,2]
[362418053,1748271038913,-562.66007603,0.00020737,2]
[362418054,1748271038923,-500.0,0.00020737,2]
[362418055,1748271038934,-500.0,0.00020737,2]
[362418056,1748271038944,-500.0,0.00020737,2]
[362418057,1748271038954,-164.476756,0.00020738,2]
[362418058,1748271038964,-204.79695348,0.000209,4]
[362418059,1748271038974,-901.22289891,0.00021,2]
[362418060,1748271038987,-666.68264225,0.00021,2]
[362418066,1748271040953,-275.49370289,0.00020735,2]
[362418067,1748271040964,-500.0,0.00020735,2]
[362418068,1748271040974,-224.51022391,0.00020735,2]
[362418135,1748271046704,-500.0,0.00020336,2]
[362418137,1748271046714,-250.0,0.00020336,2]
[362418139,1748271046724,-110.0,0.00020336,2]
[362418345,1748271605945,160.395973,0.00013699,2]
[362418347,1748271748071,-1340.45389947,0.0001699,2]
[362418348,1748271748093,-300.0,0.00016999,2]
[362418349,1748271748115,-10661.54610053,0.00017,2]
[362418350,1748272050098,-300.0,0.00016999,2]
[362418351,1748272050119,-300.0,0.00016999,2]
[362418352,1748272050141,-1200.0,0.00016999,2]
[362418353,1748272050163,-300.0,0.00016999,2]
[362418354,1748272050184,-300.0,0.00016999,2]
[362418355,1748272050223,-12299.45389947,0.00017,2]
[362418356,1748272050254,-204.79695341,0.000179,2]
[362418357,1748272050277,-156.58700001,0.00017989,2]
[362418358,1748272050302,-282.81165316,0.00017999,2]
[362418359,1748272050327,-243.83,0.00018,2]
[362418360,1748272050362,-204.79695341,0.00018438,2]
[362418361,1748272050387,-420.0,0.00018567,2]
[362418362,1748272050413,-420.0,0.00018567,2]
[362418363,1748272050440,-300.0,0.00018567,2]
[362418364,1748272050465,-420.0,0.00018567,2]
[362418365,1748272050488,-342.65267894,0.000189,2]
[362418366,1748272050521,-204.79695341,0.00018977,2]
[362418367,1748272050545,-3355.0,0.00019,2]
[362418368,1748272050570,-344.71691731,0.00019111,2]
[362418369,1748272050595,-500.0,0.00019111,2]
[362418370,1748272050621,-508.07334178,0.00019111,2]
[362418371,1748272050645,-4767.7930915,0.00019112,2]
[362418372,1748272050669,-430.083473,0.00019244,2]
[362418373,1748272050694,-8264.5929658,0.00019285,2]
[362418374,1748272050723,-204.79695341,0.00019515,2]
[362418375,1748272050745,-160.0,0.00019951,2]
[362418376,1748272050768,-894.64583333,0.00019951,2]
[362418377,1748272050796,-204.79695341,0.00020054,2]
[362418378,1748272050819,-161.832419,0.00020107,2]
[362418379,1748272050842,-180.0,0.00020279,2]
[362418380,1748272050864,-587.0,0.00020279,2]
[362418381,1748272050886,-220.25306176,0.00020427,4]
[362418382,1748272050909,-10000.0,0.00020449,2]
[362418383,1748272050935,-197.8260046,0.00020527,2]
[362418384,1748272050964,-204.79695341,0.00020592,3]
[362418385,1748272050986,-432.09445884,0.00021,2]
[362418386,1748272051018,-204.79695341,0.00021131,4]
[362418387,1748272051044,-500.0,0.00021164,2]
[362418388,1748272051067,-500.0,0.0002163,2]
[362418389,1748272051098,-204.79695341,0.00021669,5]
[362418390,1748272051122,-243.83,0.00021934,2]
[362418391,1748272051146,-500.0,0.00021943,2]
[362418392,1748272051168,-542.84559202,0.00021943,2]
[362418393,1748272051195,-500.0,0.00021943,2]
[362418394,1748272051217,-600.75521901,0.00021943,2]
[362418395,1748272051239,-500.0,0.00021943,2]
[362418396,1748272051261,-500.0,0.00021943,2]
[362418397,1748272051284,-500.0,0.00021943,2]
[362418398,1748272051308,-391.89037238,0.00021943,2]
[362418399,1748272051331,-430.51841573,0.00021944,2]
[362418400,1748272051358,-612.0329883,0.00021944,2]
[362418401,1748272051380,-334.49580169,0.00021944,7]
[362418402,1748272051402,-334.49580169,0.00021944,7]
[362418403,1748272051425,-334.49580169,0.00021944,7]
[362418404,1748272051446,-334.49580169,0.00021944,7]
[362418405,1748272051468,-334.49580169,0.00021944,7]
[362418406,1748272051489,-334.49580169,0.00021944,7]
[362418407,1748272051510,-334.49580169,0.00021944,7]
[362418408,1748272051531,-334.49580169,0.00021944,7]
[362418409,1748272051553,-334.49580169,0.00021944,2]
[362418410,1748272051574,-334.49580169,0.00021944,2]
[362418411,1748272051595,-334.49580169,0.00021944,2]
[362418412,1748272051616,-334.49580169,0.00021944,2]
[362418413,1748272051637,-334.49580169,0.00021944,2]
[362418414,1748272051661,-334.49580169,0.00021944,2]
[362418415,1748272051682,-334.49580169,0.00021944,2]
[362418416,1748272051703,-4000.0,0.00022,2]
[362418417,1748272051725,-505.0,0.00022,3]
[362418418,1748272051747,-181.0,0.00022,2]
[362418419,1748272051769,-302.0,0.00022149,2]
[362418420,1748272051791,-1039.09427458,0.00022178,2]
[362418421,1748272051813,-513.9790184,0.0002218,2]
[362418422,1748272051834,-513.9790184,0.0002218,2]
[362418423,1748272051856,-513.9790184,0.0002218,2]
[362418424,1748272051877,-513.9790184,0.0002218,2]